fUSD/lending_fUSD_20251017
["ID","MTS","AMOUNT","RATE_DAILY","PERIOD"]
[391677968,1760725854678,-2100.0,0.00039,120]
[391677970,1760725854689,-70811.13704374,0.00039,10]
[391677972,1760725854700,-2308.67056713,0.00039,120]
[391677974,1760725854709,-1500.40145527,0.00039,120]
[391677976,1760725854719,-2876.37677864,0.00039,30]
[391677978,1760725854729,-3117.26388516,0.00039,120]
[391677980,1760725854740,-39423.67639573,0.00039,120]
[391677983,1760725854750,-1340.6,0.00039,30]
[391677985,1760725854760,-1342.86,0.00039,2]
[391677987,1760725854769,-153.0,0.00039,120]
[391677989,1760725854779,-5568.41,0.000391,14]
[391677991,1760725854791,-5675.61729623,0.0003912,2]
[391677993,1760725854801,-181.0,0.000392,120]
[391677995,1760725854811,-2880.0,0.00039206,5]
[391677997,1760725854821,-1189.7,0.00039244,17]
[391677999,1760725854831,-831.62,0.00039244,17]
[391678001,1760725854841,-573.71,0.00039244,17]
[391678003,1760725854849,-2653.06,0.00039244,17]
[391678005,1760725854859,-606.74,0.00039244,17]
[391678007,1760725854869,-300.0,0.00039443,10]
[391678009,1760725854878,-213983.3306,0.00039444,7]
[391678011,1760725854888,-300.0,0.00039473,5]
[391678013,1760725854897,-1189.7,0.00039518,17]
[391678015,1760725854906,-831.62,0.00039518,17]
[391678017,1760725854916,-573.71,0.00039518,17]
[391678019,1760725854925,-2653.06,0.00039518,17]
[391678021,1760725854935,-606.74,0.00039518,17]
[391678024,1760725854945,-348.85478134,0.00039789,15]
[391678025,1760725854954,-1189.7,0.00039792,17]
[391678027,1760725854964,-831.62,0.00039792,17]
[391678030,1760725854974,-573.71,0.00039792,17]
[391678031,1760725854983,-2653.06,0.00039792,17]
[391678033,1760725854993,-606.74,0.00039792,17]
[391678035,1760725855003,-181.0,0.000399,120]
[391678037,1760725855012,-13600.0,0.000399,14]
[391678040,1760725855023,-1024.85447797,0.0003997,15]
[391678042,1760725855034,-151.0,0.00039997,14]
[391678044,1760725855043,-9943.4627,0.00039999,2]
[391678046,1760725855053,-300.0,0.00039999,10]
[391678048,1760725855062,-397.91615739,0.00039999,31]
[391678050,1760725855073,-387.37737828,0.00039999,15]
[391678052,1760725855082,-500.0,0.00039999,31]
[391678054,1760725855093,-445.64713326,0.00039999,7]
[391678056,1760725855103,-500.0,0.00039999,31]
[391678058,1760725855113,-433.98159127,0.00039999,31]
[391678060,1760725855123,-258.5188785,0.00039999,31]
[391678062,1760725855132,-500.0,0.00039999,31]
[391678064,1760725855143,-500.0,0.00039999,31]
[391678066,1760725855153,-500.0,0.00039999,31]
[391678068,1760725855164,-500.0,0.00039999,31]
[391678070,1760725855174,-500.0,0.00039999,31]
[391678072,1760725855184,-244.43784699,0.00039999,31]
[391678074,1760725855195,-500.0,0.00039999,31]
[391678076,1760725855205,-205.76221234,0.00039999,31]
[391678078,1760725855215,-500.0,0.00039999,31]
[391678080,1760725855226,-500.0,0.00039999,31]
[391678082,1760725855237,-500.0,0.00039999,31]
[391678084,1760725855247,-500.0,0.00039999,31]
[391678086,1760725855257,-274.46717737,0.00039999,31]
[391678088,1760725855267,-500.0,0.00039999,31]
[391678090,1760725855279,-500.0,0.00039999,31]
[391678093,1760725855290,-500.0,0.00039999,31]
[391678095,1760725855300,-500.0,0.00039999,31]
[391678097,1760725855311,-500.0,0.00039999,2]
[391678099,1760725855321,-500.0,0.00039999,2]
[391678101,1760725855330,-250.2,0.0004,120]
[391678103,1760725855340,-292.5998,0.0004,120]
[391678105,1760725855350,-150.0,0.0004,90]
[391678107,1760725855360,-445963.22918349,0.0004,2]
[391678109,1760725855370,-477.12749073,0.0004,30]
[391678111,1760725855380,-414.41037173,0.0004,7]
[391678113,1760725855390,-2607.95569,0.0004,90]
[391678115,1760725855400,-4042.3347584,0.0004,14]
[391678117,1760725855410,-337.82366631,0.0004,120]
[391678120,1760725855421,-5009.64074741,0.0004,10]
[391678122,1760725855431,-1856.13164766,0.0004,120]
[391678124,1760725855441,-661.86217465,0.0004,30]
[391678142,1760725855591,-927.74466825,0.0004,120]
[391678145,1760725855618,-13845.13717553,0.0004,120]
[391678147,1760725855627,-2299.99999103,0.0004,2]
[391678148,1760725855636,-961.82348917,0.0004,7]
[391678150,1760725855647,-204.41360584,0.0004,30]
[391678152,1760725855656,-996.39564586,0.0004,20]
[391678154,1760725855665,-2306.70272164,0.0004,120]
[391678157,1760725855675,-384.00634793,0.0004,2]
[391678159,1760725855685,-108264.82668771,0.0004,30]
[391678161,1760725855696,-2291.5609313,0.0004,120]
[391678163,1760725855705,-719.184267,0.0004,30]
[391678165,1760725855715,-519.06717968,0.0004,120]
[391678167,1760725855724,-1989.66198057,0.0004,120]
[391678168,1760725855734,-2673.75435802,0.0004,120]
[391678171,1760725855745,-231.51852236,0.0004,120]
[391678173,1760725855754,-215.21766616,0.0004,2]
[391678175,1760725855764,-7555.62184563,0.0004,120]
[391678177,1760725855774,-1133.31713148,0.0004,120]
[391678179,1760725855783,-1198.11783255,0.0004,120]
[391678181,1760725855792,-983.89767249,0.0004,2]
[391678182,1760725855801,-495.24685724,0.0004,120]
[391678185,1760725855811,-1105.0024428,0.0004,30]
[391678187,1760725855820,-2596.59128746,0.0004,30]
[391678189,1760725855830,-11500.95686108,0.0004,120]
[391678191,1760725855841,-500.0,0.0004,30]
[391678193,1760725855851,-2014.78105189,0.0004,120]
[391678195,1760725855860,-1523.00248362,0.0004,120]
[391678197,1760725855870,-153.0,0.0004,120]
[391678198,1760725855879,-685.483516,0.00040035,120]
[391678200,1760725855888,-266.46833863,0.00040061,30]
[391678202,1760725855898,-1189.7,0.00040066,17]
[391678205,1760725855909,-831.62,0.00040066,17]
[391678207,1760725855918,-573.71,0.00040066,17]
[391678208,1760725855928,-2653.06,0.00040066,17]
[391678210,1760725855937,-606.74,0.00040066,17]
[391678212,1760725855946,-500.0,0.00040099,17]
[391678214,1760725855956,-500.0,0.00040099,17]
[391678216,1760725855966,-500.0,0.00040099,17]
[391678218,1760725855976,-500.0,0.00040099,17]
[391678220,1760725855985,-500.0,0.00040099,17]
[391678222,1760725855994,-500.0,0.00040099,17]
[391678224,1760725856003,-500.0,0.00040099,17]
[391678226,1760725856013,-500.0,0.00040099,17]
[391678228,1760725856022,-500.0,0.00040099,17]
[391678230,1760725856032,-500.0,0.00040099,17]
[391678232,1760725856041,-637.2,0.00040099,17]
[391678235,1760725856051,-500.0,0.00040099,17]
[391678237,1760725856061,-500.0,0.00040099,17]
[391678239,1760725856070,-353.844536,0.00040099,17]
[391678240,1760725856079,-500.0,0.00040099,17]
[391678242,1760725856089,-500.0,0.00040099,17]
[391678244,1760725856098,-500.0,0.00040099,17]
[391678247,1760725856108,-500.0,0.00040099,17]
[391678249,1760725856117,-527.47,0.00040099,17]
[391678251,1760725856127,-500.0,0.00040099,17]
[391678253,1760725856137,-500.0,0.00040099,17]
[391678255,1760725856148,-500.0,0.00040099,17]
[391678257,1760725856157,-500.0,0.00040099,17]
[391678259,1760725856167,-500.99929863,0.00040099,17]
[391678261,1760725856176,-500.0,0.00040099,17]
[391678263,1760725856186,-247.9589272,0.00040099,17]
[391678265,1760725856195,-500.0,0.00040099,17]
[391678267,1760725856204,-280.39083711,0.00040099,17]
[391678269,1760725856214,-500.0,0.00040099,17]
[391678271,1760725856223,-404.86553524,0.00040099,17]
[391678273,1760725856233,-500.0,0.00040099,17]
[391678274,1760725856245,-1937.10045,0.00040099,17]
[391678275,1760725856255,-500.0,0.00040099,17]
[391678276,1760725856265,-300.0,0.00040099,2]
[391678277,1760725856275,-500.0,0.00040099,17]
[391678278,1760725856286,-500.0,0.00040099,17]
[391678279,1760725856296,-500.0,0.00040099,17]
[391678280,1760725856306,-500.0,0.00040099,17]
[391678281,1760725856316,-500.0,0.00040099,16]
[391678282,1760725856327,-500.0,0.00040099,2]
[391678284,1760725856337,-500.0,0.00040099,17]
[391678286,1760725856346,-500.0,0.00040099,17]
[391678288,1760725856356,-534.22573689,0.00040099,17]
[391678290,1760725856365,-500.0,0.00040099,17]
[391678292,1760725856374,-500.0,0.00040099,17]
[391678294,1760725856383,-500.0,0.00040099,17]
[391678296,1760725856393,-500.0,0.00040099,17]
[391678298,1760725856403,-552.22,0.00040099,17]
[391678300,1760725856413,-500.0,0.00040099,17]
[391678302,1760725856423,-20873.995301,0.00040099,17]
[391678304,1760725856432,-500.0,0.00040099,17]
[391678306,1760725856442,-500.0,0.00040099,17]
[391678308,1760725856452,-500.0,0.00040099,6]
[391678310,1760725856462,-500.0,0.00040099,17]
[391678312,1760725856472,-500.0,0.00040099,17]
[391678314,1760725856482,-500.0,0.00040099,17]
[391678317,1760725856492,-500.0,0.00040099,17]
[391678319,1760725856501,-500.0,0.00040099,17]
[391678321,1760725856511,-251.7,0.00040099,17]
[391678323,1760725856521,-500.0,0.00040099,17]
[391678325,1760725856531,-500.0,0.00040099,2]
[391678327,1760725856541,-500.0,0.00040099,17]
[391678329,1760725856550,-500.0,0.00040099,3]
[391678331,1760725856560,-500.0,0.00040099,17]
[391678333,1760725856569,-500.0,0.00040099,17]
[391678335,1760725856579,-500.0,0.00040099,17]
[391678337,1760725856588,-500.0,0.00040099,17]
[391678339,1760725856598,-500.0,0.00040099,17]
[391678341,1760725856607,-500.0,0.00040099,17]
[391678343,1760725856617,-500.0,0.00040099,17]
[391678345,1760725856627,-500.0,0.00040099,17]
[391678347,1760725856636,-195.58951726,0.00040099,17]
[391678349,1760725856646,-573.30172837,0.00040099,17]
[391678351,1760725856655,-452.37064061,0.00040099,17]
[391678353,1760725856665,-500.66531954,0.00040099,17]
[391678355,1760725856674,-295.74442227,0.00040099,17]
[391678357,1760725856683,-500.0,0.00040099,17]
[391678359,1760725856693,-500.0,0.00040099,17]
[391678361,1760725856707,-500.0,0.00040099,17]
[391678363,1760725856716,-500.0,0.00040099,17]
[391678365,1760725856726,-500.0,0.00040099,17]
[391678367,1760725856735,-500.0,0.00040099,17]
[391678369,1760725856745,-500.0,0.00040099,17]
[391678371,1760725856754,-500.0,0.00040099,17]
[391678373,1760725856764,-500.0,0.00040099,17]
[391678375,1760725856774,-152.81143038,0.00040099,17]
[391678377,1760725856785,-351.85297663,0.00040099,17]
[391678379,1760725856794,-500.0,0.00040099,17]
[391678381,1760725856810,-500.0,0.00040099,17]
[391678383,1760725856821,-421.21547277,0.00040099,17]
[391678386,1760725856831,-500.0,0.00040099,17]
[391678388,1760725856841,-500.0,0.00040099,17]
[391678390,1760725856851,-535.20775871,0.00040099,17]
[391678391,1760725856860,-290.31,0.0004012,14]
[391678393,1760725856869,-1091.0,0.00040297,5]
[391678396,1760725856879,-500.0,0.00040335,2]
[391678397,1760725856889,-1189.7,0.0004034,17]
[391678399,1760725856898,-831.62,0.0004034,17]
[391678401,1760725856908,-573.71,0.0004034,17]
[391678403,1760725856917,-2653.06,0.0004034,17]
[391678406,1760725856928,-606.74,0.0004034,17]
[391678408,1760725856938,-224.52,0.00040365,14]
[391678409,1760725856948,-500.0,0.00040373,17]
[391678412,1760725856958,-500.0,0.00040373,17]
[391678413,1760725856967,-602.23,0.00040373,17]
[391678416,1760725856977,-500.0,0.00040373,17]
[391678418,1760725856986,-500.0,0.00040373,17]
[391678420,1760725856995,-500.0,0.00040373,17]
[391678422,1760725857008,-500.0,0.00040373,17]
[391678423,1760725857018,-520.36,0.00040373,17]
[391678425,1760725857027,-500.0,0.00040373,17]
[391678428,1760725857038,-500.0,0.00040373,17]
[391678430,1760725857048,-241.72,0.00040373,17]
[391678432,1760725857058,-353.844536,0.00040373,17]
[391678434,1760725857068,-500.0,0.00040373,17]
[391678436,1760725857078,-500.0,0.00040373,17]
[391678438,1760725857088,-290.64,0.00040373,17]
[391678440,1760725857099,-500.0,0.00040373,17]
[391678442,1760725857110,-500.0,0.00040373,17]
[391678444,1760725857120,-500.0,0.00040373,17]
[391678446,1760725857130,-500.0,0.00040373,17]
[391678448,1760725857141,-500.0,0.00040373,17]
[391678450,1760725857151,-500.0,0.00040373,17]
[391678452,1760725857161,-500.0,0.00040373,17]
[391678454,1760725857170,-1937.10045,0.00040373,17]
[391678456,1760725857179,-500.0,0.00040373,17]
[391678458,1760725857189,-300.0,0.00040373,2]
[391678460,1760725857200,-500.0,0.00040373,17]
[391678462,1760725857209,-500.0,0.00040373,17]
[391678464,1760725857219,-500.0,0.00040373,17]
[391678466,1760725857229,-500.0,0.00040373,17]
[391678468,1760725857241,-500.0,0.00040373,16]
[391678470,1760725857252,-500.0,0.00040373,2]
[391678472,1760725857261,-162.0981998,0.00040373,17]
[391678474,1760725857271,-525.23058767,0.00040373,17]
[391678476,1760725857282,-500.0,0.00040373,17]
[391678478,1760725857291,-500.0,0.00040373,17]
[391678480,1760725857300,-500.0,0.00040373,17]
[391678482,1760725857311,-500.0,0.00040373,17]
[391678484,1760725857321,-20873.995301,0.00040373,17]
[391678486,1760725857331,-500.0,0.00040373,17]
[391678488,1760725857341,-514.7453143,0.00040373,17]
[391678490,1760725857350,-500.0,0.00040373,6]
[391678493,1760725857361,-183.36915395,0.00040373,17]
[391678495,1760725857370,-163.01782728,0.00040373,17]
[391678497,1760725857380,-500.0,0.00040373,17]
[391678499,1760725857389,-500.0,0.00040373,17]
[391678501,1760725857399,-500.0,0.00040373,17]
[391678503,1760725857408,-500.0,0.00040373,17]
[391678505,1760725857419,-500.0,0.00040373,2]
[391678507,1760725857428,-500.0,0.00040373,17]
[391678509,1760725857438,-500.0,0.00040373,17]
[391678511,1760725857447,-233.81115542,0.00040373,17]
[391678513,1760725857457,-500.0,0.00040373,17]
[391678515,1760725857466,-500.0,0.00040373,17]
[391678517,1760725857476,-500.0,0.00040373,17]
[391678519,1760725857486,-500.0,0.00040373,17]
[391678521,1760725857495,-500.0,0.00040373,17]
[391678523,1760725857504,-201.91397514,0.00040373,17]
[391678525,1760725857513,-500.0,0.00040373,17]
[391678527,1760725857523,-400.0,0.00040373,17]
[391678529,1760725857532,-500.0,0.00040373,17]
[391678531,1760725857541,-500.0,0.00040373,17]
[391678533,1760725857551,-500.0,0.00040373,17]
[391678535,1760725857561,-500.0,0.00040373,17]
[391678537,1760725857570,-500.0,0.00040373,17]
[391678539,1760725857579,-253.27531216,0.000405,120]
[391678541,1760725857589,-709.9,0.00040588,60]
[391678543,1760725857599,-181.0,0.000406,120]
[391678545,1760725857608,-1189.7,0.00040614,17]
[391678547,1760725857617,-831.62,0.00040614,17]
[391678549,1760725857627,-573.71,0.00040614,17]
[391678551,1760725857636,-2653.06,0.00040614,17]
[391678553,1760725857645,-606.74,0.00040614,17]
[391678555,1760725857654,-500.0,0.00040647,17]
[391678557,1760725857663,-422.81,0.00040647,17]
[391678559,1760725857673,-500.0,0.00040647,17]
[391678561,1760725857682,-267.32,0.00040647,17]
[391678563,1760725857691,-500.0,0.00040647,17]
[391678565,1760725857700,-500.0,0.00040647,17]
[391678567,1760725857709,-500.0,0.00040647,17]
[391678569,1760725857718,-191.09,0.00040647,17]
[391678571,1760725857732,-500.0,0.00040647,17]
[391678573,1760725857741,-233.3415576,0.00040647,17]
[391678574,1760725857751,-500.0,0.00040647,17]
[391678577,1760725857760,-500.0,0.00040647,17]
[391678578,1760725857770,-500.0,0.00040647,17]
[391678580,1760725857779,-500.0,0.00040647,17]
[391678583,1760725857788,-500.0,0.00040647,17]
[391678585,1760725857798,-500.0,0.00040647,17]
[391678587,1760725857808,-300.0,0.00040647,2]
[391678589,1760725857817,-500.0,0.00040647,17]
[391678591,1760725857827,-500.0,0.00040647,17]
[391678593,1760725857837,-201.29735148,0.00040647,17]
[391678595,1760725857846,-500.0,0.00040647,16]
[391678597,1760725857856,-500.0,0.00040647,2]
[391678599,1760725857865,-500.0,0.00040647,17]
[391678601,1760725857875,-500.0,0.00040647,17]
[391678603,1760725857884,-500.0,0.00040647,17]
[391678605,1760725857894,-500.0,0.00040647,17]
[391678607,1760725857903,-531.70048513,0.00040647,17]
[391678609,1760725857912,-500.0,0.00040647,6]
[391678611,1760725857921,-500.0,0.00040647,17]
[391678618,1760725857974,-583.96,0.00040647,17]
[391678620,1760725857984,-500.0,0.00040647,17]
[391678622,1760725857994,-500.0,0.00040647,17]
[391678623,1760725858003,-217.42029736,0.00040647,17]
[391678625,1760725858012,-500.0,0.00040647,17]
[391678627,1760725858021,-500.0,0.00040647,17]
[391678629,1760725858030,-500.0,0.00040647,17]
[391678631,1760725858039,-500.0,0.00040647,17]
[391678633,1760725858048,-500.0,0.00040647,17]
[391678635,1760725858057,-500.0,0.00040647,17]
[391678637,1760725858066,-500.0,0.00040647,17]
[391678639,1760725858075,-500.0,0.00040647,17]
[391678641,1760725858084,-500.0,0.00040647,17]
[391678643,1760725858094,-500.0,0.00040647,17]
[391678645,1760725858103,-483.97555511,0.00040647,17]
[391678647,1760725858114,-10662.02,0.000407,30]
[391678649,1760725858124,-153.0,0.00040715,30]
[391678651,1760725858133,-153.0,0.00040715,30]
[391678653,1760725858141,-153.0,0.00040715,30]
[391678655,1760725858151,-153.0,0.00040715,30]
[391678657,1760725858160,-153.0,0.00040715,30]
[391678659,1760725858169,-153.0,0.00040715,30]
[391678661,1760725858178,-153.0,0.00040715,30]
[391678663,1760725858187,-153.0,0.00040715,30]
[391678665,1760725858197,-153.0,0.00040715,30]
[391678666,1760725858206,-153.0,0.00040715,30]
[391678669,1760725858216,-153.0,0.00040715,30]
[391678671,1760725858226,-153.0,0.00040715,30]
[391678672,1760725858237,-153.0,0.00040715,30]
[391678675,1760725858247,-153.0,0.00040715,30]
[391678676,1760725858256,-153.0,0.00040715,30]
[391678679,1760725858266,-153.0,0.00040715,30]
[391678681,1760725858275,-153.0,0.00040715,30]
[391678683,1760725858285,-153.0,0.00040715,30]
[391678684,1760725858294,-153.0,0.00040715,30]
[391678687,1760725858305,-153.0,0.00040715,30]
[391678689,1760725858315,-153.0,0.00040715,30]
[391678690,1760725858324,-153.0,0.00040715,30]
[391678693,1760725858334,-153.0,0.00040715,30]
[391678694,1760725858343,-153.0,0.00040715,30]
[391678696,1760725858353,-153.0,0.00040715,30]
[391678698,1760725858362,-153.0,0.00040715,30]
[391678700,1760725858371,-153.0,0.00040715,30]
[391678702,1760725858381,-153.0,0.00040715,30]
[391678704,1760725858390,-153.0,0.00040715,30]
[391678706,1760725858400,-153.0,0.00040715,30]
[391678708,1760725858409,-153.0,0.00040715,30]
[391678709,1760725858419,-153.0,0.00040715,30]
[391678710,1760725858428,-153.0,0.00040715,30]
[391678711,1760725858437,-153.0,0.00040715,30]
[391678712,1760725858448,-153.0,0.00040715,30]
[391678713,1760725858457,-153.0,0.00040715,30]
[391678714,1760725858467,-153.0,0.00040715,30]
[391678715,1760725858476,-153.0,0.00040715,30]
[391678716,1760725858486,-153.0,0.00040715,30]
[391678717,1760725858495,-153.0,0.00040715,30]
[391678718,1760725858504,-153.0,0.00040715,30]
[391678719,1760725858514,-153.0,0.00040715,30]
[391678720,1760725858523,-153.0,0.00040715,30]
[391678722,1760725858532,-153.0,0.00040715,30]
[391678724,1760725858541,-153.0,0.00040715,30]
[391678726,1760725858551,-153.0,0.00040715,30]
[391678728,1760725858560,-153.0,0.00040715,30]
[391678730,1760725858569,-153.0,0.00040715,30]
[391678731,1760725858578,-153.0,0.00040715,30]
[391678733,1760725858588,-153.0,0.00040715,30]
[391678736,1760725858597,-153.0,0.00040715,30]
[391678737,1760725858606,-153.0,0.00040715,30]
[391678739,1760725858616,-153.0,0.00040715,30]
[391678741,1760725858626,-153.0,0.00040715,30]
[391678744,1760725858636,-153.0,0.00040715,30]
[391678745,1760725858645,-153.0,0.00040715,30]
[391678747,1760725858655,-153.0,0.00040715,30]
[391678749,1760725858664,-153.0,0.00040715,30]
[391678751,1760725858673,-153.0,0.00040715,30]
[391678754,1760725858686,-153.0,0.00040715,30]
[391678756,1760725858695,-153.0,0.00040715,30]
[391678758,1760725858707,-153.0,0.00040715,30]
[391678760,1760725858716,-153.0,0.00040715,30]
[391678762,1760725858725,-153.0,0.00040715,30]
[391678764,1760725858735,-153.0,0.00040715,30]
[391678766,1760725858744,-153.0,0.00040715,30]
[391678768,1760725858753,-153.0,0.00040715,30]
[391678770,1760725858762,-153.0,0.00040715,30]
[391678772,1760725858772,-153.0,0.00040715,30]
[391678774,1760725858781,-153.0,0.00040715,30]
[391678776,1760725858790,-153.0,0.00040715,30]
[391678778,1760725858799,-153.0,0.00040715,30]
[391678780,1760725858809,-153.0,0.00040715,30]
[391678781,1760725858818,-153.0,0.00040715,30]
[391678783,1760725858827,-153.0,0.00040715,30]
[391678785,1760725858836,-153.0,0.00040715,30]
[391678787,1760725858846,-153.0,0.00040715,30]
[391678789,1760725858855,-153.0,0.00040715,30]
[391678791,1760725858865,-153.0,0.00040715,30]
[391678793,1760725858874,-153.0,0.00040715,30]
[391678795,1760725858883,-153.0,0.00040715,30]
[391678797,1760725858892,-153.0,0.00040715,30]
[391678799,1760725858902,-153.0,0.00040715,30]
[391678801,1760725858911,-153.0,0.00040715,30]
[391678803,1760725858921,-153.0,0.00040715,30]
[391678805,1760725858930,-153.0,0.00040715,30]
[391678807,1760725858939,-153.0,0.00040715,30]
[391678809,1760725858951,-153.0,0.00040715,30]
[391678811,1760725858961,-153.0,0.00040715,30]
[391678813,1760725858970,-153.0,0.00040715,30]
[391678815,1760725858980,-153.0,0.00040715,30]
[391678817,1760725858990,-153.0,0.00040715,30]
[391678819,1760725858999,-153.0,0.00040715,30]
[391678821,1760725859009,-153.0,0.00040715,30]
[391678823,1760725859019,-153.0,0.00040715,30]
[391678825,1760725859028,-153.0,0.00040715,30]
[391678827,1760725859037,-153.0,0.00040715,30]
[391678829,1760725859047,-153.0,0.00040715,30]
[391678831,1760725859056,-153.0,0.00040715,30]
[391678833,1760725859065,-153.0,0.00040715,30]
[391678835,1760725859074,-1444.0,0.00040767,120]
[391678837,1760725859084,-267.22547569,0.000408,60]
[391678839,1760725859093,-200.0,0.000408,20]
[391678841,1760725859103,-1189.84900136,0.00040888,17]
[391678843,1760725859112,-831.73913201,0.00040888,17]
[391678845,1760725859122,-573.92,0.00040888,17]
[391678847,1760725859130,-2653.22232376,0.00040888,17]
[391678849,1760725859140,-606.83,0.00040888,17]
[391678851,1760725859149,-191.76523301,0.000409,120]
[391678853,1760725859158,-500.0,0.00040921,17]
[391678855,1760725859167,-500.0,0.00040921,17]
[391678857,1760725859176,-205.58,0.00040921,17]
[391678859,1760725859185,-500.0,0.00040921,17]
[391678861,1760725859194,-259.28,0.00040921,17]
[391678862,1760725859204,-500.0,0.00040921,17]
[391678864,1760725859214,-500.0,0.00040921,17]
[391678866,1760725859224,-554.93,0.00040921,17]
[391678868,1760725859235,-500.0,0.00040921,17]
[391678870,1760725859246,-500.0,0.00040921,17]
[391678872,1760725859256,-500.0,0.00040921,17]
[391678874,1760725859265,-500.0,0.00040921,17]
[391678877,1760725859276,-300.0,0.00040921,2]
[391678878,1760725859286,-500.0,0.00040921,17]
[391678881,1760725859296,-500.0,0.00040921,17]
[391678882,1760725859306,-500.0,0.00040921,16]
[391678884,1760725859317,-500.0,0.00040921,2]
[391678887,1760725859327,-500.0,0.00040921,17]
[391678888,1760725859336,-581.53211688,0.00040921,17]
[391678890,1760725859346,-500.0,0.00040921,17]
[391678892,1760725859356,-500.0,0.00040921,6]
[391678894,1760725859366,-500.0,0.00040921,17]
[391678897,1760725859376,-549.57107671,0.00040921,17]
[391678898,1760725859386,-345.11768979,0.00040921,17]
[391678900,1760725859395,-500.0,0.00040921,17]
[391678903,1760725859405,-500.0,0.00040921,17]
[391678905,1760725859415,-500.0,0.00040921,17]
[391678907,1760725859425,-500.0,0.00040921,17]
[391678909,1760725859434,-500.0,0.00040921,17]
[391678911,1760725859443,-500.0,0.00040921,17]
[391678913,1760725859453,-300.40373765,0.0004097,3]
[391678915,1760725859463,-400.0,0.0004097,3]
[391678917,1760725859472,-5000.0,0.00040996,2]
[391678919,1760725859482,-226847.00442103,0.00040998,60]
[391678921,1760725859491,-2571.18153825,0.00041,30]
[391678923,1760725859501,-571.8001381,0.00041,120]
[391678925,1760725859511,-169.0,0.00041,90]
[391678927,1760725859521,-2100.0,0.00041,120]
[391678929,1760725859531,-172.22522765,0.00041,120]
[391678931,1760725859540,-153.0,0.00041,120]
[391678933,1760725859549,-11718.0,0.00041021,117]
[391678935,1760725859560,-12202.635,0.00041095,7]
[391678937,1760725859569,-500.0,0.00041096,30]
[391678939,1760725859579,-500.0,0.00041096,30]
[391678941,1760725859588,-500.0,0.00041096,30]
[391678943,1760725859598,-500.0,0.00041096,30]
[391678945,1760725859607,-500.0,0.00041096,30]
[391678947,1760725859616,-500.0,0.00041096,30]
[391678949,1760725859626,-500.0,0.00041096,30]
[391678951,1760725859635,-500.0,0.00041096,30]
[391678953,1760725859644,-500.0,0.00041096,30]
[391678955,1760725859653,-500.0,0.00041096,30]
[391678957,1760725859663,-500.0,0.00041096,30]
[391678959,1760725859673,-500.0,0.00041096,30]
[391678961,1760725859684,-500.0,0.00041096,30]
[391678963,1760725859693,-500.0,0.00041096,30]
[391678965,1760725859704,-500.0,0.00041096,30]
[391678968,1760725859714,-500.0,0.00041096,30]
[391678970,1760725859724,-500.0,0.00041096,30]
[391678972,1760725859733,-500.0,0.00041096,30]